[Event "DSAM Bad Wildungen 2024"]
[Site "Bad Wildungen"]
[Date "2024.08.01"]
[Round "1.17"]
[White "Petzold, Johannes Julius"]
[Black "Derr, Oleg"]
[Result "0-1"]
[Annotator "RC"]
[ECO "B45"]
[WhiteElo "1978"]
[BlackElo "1947"]
[PlyCount "66"]
[EventDate "2024.07.31"]
[EventCountry "GER"]
[SourceTitle "playchess.com"]
[Source "ChessBase"]
[SourceQuality "1"]
[TimeControl "40/5400+30:900+30"]

1. e4 {[%emt 0:00:03]} c5 {[%emt 0:00:03]} 2. Nf3 {[%emt 0:00:04]} Nc6 {[%emt 0:00:04]} 3. d4 {[%emt 0:00:05]} cxd4 {[%emt 0:00:04]} 4. Nxd4 {[%emt 0:00:04]} Nf6 {[%emt 0:00:04]} 5. Nc3 {[%emt 0:00:04]} e6 {[%emt 0:00:04]} 6. Ndb5 {[%emt 0:00:16]} Bc5 {[%emt 0:00:08]} 7. Nd6+ {[%emt 0:01:08]} Ke7 {[%emt 0:00:07]} 8. Nc4 {[%emt 0:23:52]} d5 {[%emt 0:05:43]} 9. e5 {[%emt 0:14:27]} Ne8 {[%emt 0:07:03]} 10. Nd2 {[%emt 0:05:10]} Nxe5 {[%emt 0:01:17]} 11. Nb3 {[%emt 0:01:20]} Bb6 {[%emt 0:03:46]} 12. Qh5 {[%emt 0:08:12]} Ng6 {[%emt 0:03:12]} 13. Bd3 {[%emt 0:02:47]} Nf6 {[%emt 0:04:59]} 14. Bg5 {[%emt 0:00:45]} Kf8 {[%emt 0:12:06]} 15. Qe2 {[%emt 0:08:43]} h6 {[%emt 0:02:43]} 16. Bd2 {[%emt 0:01:37]} Bd7 {[%emt 0:06:08]} 17. O-O-O {[%emt 0:01:42]} Ne7 {[%emt 0:15:04]} 18. g4 {[%emt 0:05:40]} d4 {[%emt 0:03:03]} 19. Ne4 {[%emt 0:00:13]} Nfd5 {[%emt 0:00:22]} 20. g5 {[%emt 0:04:40]} h5 {[%emt 0:02:09]} 21. Bc4 {[%emt 0:09:49]} Bc6 {[%emt 0:02:34]} 22. Rhe1 {[%emt 0:01:46]} Rc8 {[%emt 0:04:12]} 23. Bxd5 {[%emt 0:02:32]} Qxd5 {[%emt 0:02:11]} 24. Bb4 {[%emt 0:01:09]} Bb5 {[%emt 0:01:54]} 25. Qf3 {[%emt 0:02:02]} Qc4 {[%emt 0:02:04]} 26. Bxe7+ {[%emt 0:01:29]} Kxe7 {[%emt 0:00:05]} 27. Rd2 {[%emt 0:00:22]} a5 {[%emt 0:04:23]} 28. g6 {[%emt 0:01:30]} f6 {[%emt 0:00:13]} 29. Nxf6 {[%emt 0:00:43]} gxf6 {[%emt 0:00:48]} 30. Qxb7+ {[%emt 0:00:47]} Qc7 {[%emt 0:00:11]} 31. Qd5 {[%emt 0:00:07]} Qc6 {[%emt 0:01:46]} 32. Qf5 {[%emt 0:02:35]} d3 {[%emt 0:03:27]} 33. g7 {[%emt 0:00:41]} Rhg8 {[%emt 0:00:30]} 0-1

[Event "DSAM Bad Wildungen 2024"]
[Site "Bad Wildungen"]
[Date "2024.08.01"]
[Round "1.18"]
[White "Trunz, Tamila"]
[Black "Koelpin, Arvid"]
[Result "0-1"]
[Annotator "RC"]
[ECO "B98"]
[WhiteElo "1985"]
[BlackElo "1865"]
[PlyCount "66"]
[EventDate "2024.07.31"]
[EventCountry "GER"]
[SourceTitle "playchess.com"]
[Source "ChessBase"]
[SourceQuality "1"]
[TimeControl "40/5400+30:900+30"]

1. e4 {[%emt 0:00:04]} c5 {[%emt 0:00:15]} 2. Nf3 {[%emt 0:00:07]} d6 {[%emt 0:00:05]} 3. d4 {[%emt 0:00:04]} cxd4 {[%emt 0:00:10]} 4. Nxd4 {[%emt 0:00:06]} Nf6 {[%emt 0:00:04]} 5. Nc3 {[%emt 0:00:31]} a6 {[%emt 0:00:06]} 6. Bg5 {[%emt 0:00:14]} e6 {[%emt 0:00:13]} 7. f4 {[%emt 0:00:37]} Be7 {[%emt 0:00:15]} 8. Qf3 {[%emt 0:01:11]} Qc7 {[%emt 0:01:16]} 9. O-O-O {[%emt 0:00:45]} b5 {[%emt 0:01:17]} 10. e5 {[%emt 0:11:55]} Bb7 {[%emt 0:01:02]} 11. exd6 {[%emt 0:15:32]} Bxd6 {[%emt 0:05:37]} 12. Qe3 {[%emt 0:07:35]} Bc5 {[%emt 0:08:43]} 13. Bxf6 {[%emt 0:09:34]} gxf6 {[%emt 0:00:12]} 14. Ne4 {[%emt 0:01:35]} Nd7 {[%emt 0:13:03]} 15. Nxc5 {[%emt 0:09:58]} Nxc5 {[%emt 0:01:32]} 16. Nf5 {[%emt 0:05:10]} Ne4 {[%emt 0:05:53]} 17. Ng7+ {[%emt 0:03:42]} Kf8 {[%emt 0:00:52]} 18. Nh5 {[%emt 0:00:55]} Ke7 {[%emt 0:01:00]} 19. Bd3 {[%emt 0:05:18]} Qc5 {[%emt 0:00:20]} 20. Qf3 {[%emt 0:02:06]} f5 {[%emt 0:01:19]} 21. Rhe1 {[%emt 0:04:22]} Bd5 {[%emt 0:08:21]} 22. Qh3 {[%emt 0:03:50]} f6 {[%emt 0:03:39]} 23. Qh4 {[%emt 0:00:57]} Raf8 {[%emt 0:01:40]} 24. Re2 {[%emt 0:05:22]} Rhg8 {[%emt 0:01:57]} 25. h3 {[%emt 0:00:09]} Nd6 {[%emt 0:03:57]} 26. Rde1 {[%emt 0:02:41]} Rxg2 {[%emt 0:01:49]} 27. Re5 {[%emt 0:03:12]} Qd4 {[%emt 0:04:29]} 28. Ng3 {[%emt 0:02:14]} Kd8 {[%emt 0:01:46]} 29. R5e3 {[%emt 0:03:06]} Qb4 {[%emt 0:05:36]} 30. R3e2 {[%emt 0:01:21]} Bf3 {[%emt 0:04:30]} 31. Rxe6 {[%emt 0:00:16]} Nc4 {[%emt 0:00:30]} 32. Re8+ {[%emt 0:00:43]} Rxe8 {[%emt 0:00:51]} 33. Qxf6+ {[%emt 0:00:03]} Kc7 {[%emt 0:01:36]} 0-1

[Event "DSAM Bad Wildungen 2024"]
[Site "Bad Wildungen"]
[Date "2024.08.01"]
[Round "1.19"]
[White "Braeuer, Karl-Heinz"]
[Black "Muendoerfer, Sebastian"]
[Result "0-1"]
[Annotator "RC"]
[ECO "E14"]
[WhiteElo "1916"]
[BlackElo "1988"]
[PlyCount "52"]
[EventDate "2024.07.31"]
[EventCountry "GER"]
[SourceTitle "playchess.com"]
[Source "ChessBase"]
[SourceQuality "1"]
[TimeControl "40/5400+30:900+30"]

1. d4 {[%emt 0:00:06]} Nf6 {[%emt 0:00:07]} 2. c4 {[%emt 0:00:13]} e6 {[%emt 0:00:24]} 3. a3 {[%emt 0:00:29]} b6 {[%emt 0:00:39]} 4. Nf3 {[%emt 0:00:28]} Bb7 {[%emt 0:00:29]} 5. e3 {[%emt 0:00:09]} Be7 {[%emt 0:01:17]} 6. Be2 {[%emt 0:00:12]} O-O {[%emt 0:00:21]} 7. Nc3 {[%emt 0:00:09]} d5 {[%emt 0:01:10]} 8. cxd5 {[%emt 0:01:58]} Nxd5 {[%emt 0:02:17]} 9. Bd2 {[%emt 0:00:18]} Nd7 {[%emt 0:02:14]} 10. O-O {[%emt 0:02:20]} c5 {[%emt 0:05:57]} 11. Rc1 {[%emt 0:01:16]} Rc8 {[%emt 0:05:17]} 12. Nxd5 {[%emt 0:03:45]} Bxd5 {[%emt 0:00:20]} 13. Bd3 {[%emt 0:03:18]} Nf6 {[%emt 0:05:05]} 14. Bc3 {[%emt 0:00:50]} Ne4 {[%emt 0:01:40]} 15. Bxe4 {[%emt 0:02:10]} Bxe4 {[%emt 0:00:08]} 16. Nd2 {[%emt 0:01:55]} Bb7 {[%emt 0:01:58]} 17. dxc5 {[%emt 0:00:19]} Rxc5 {[%emt 0:01:25]} 18. Qe2 {[%emt 0:01:57]} Qc8 {[%emt 0:09:23]} 19. f4 {[%emt 0:06:19]} Bf6 {[%emt 0:04:02]} 20. Nb3 {[%emt 0:00:45]} Ba6 {[%emt 0:03:45]} 21. Qg4 {[%emt 0:00:19]} Rxc3 {[%emt 0:02:59]} 22. bxc3 {[%emt 0:00:30]} Bxf1 {[%emt 0:00:09]} 23. Rxf1 {[%emt 0:00:58]} Qxc3 {[%emt 0:00:44]} 24. Qd1 {[%emt 0:01:38]} Rd8 {[%emt 0:00:45]} 25. Qb1 {[%emt 0:01:21]} Qxe3+ {[%emt 0:01:13]} 26. Kh1 {[%emt 0:00:05]} h6 {[%emt 0:01:57]} 0-1

[Event "DSAM Bad Wildungen 2024"]
[Site "Bad Wildungen"]
[Date "2024.08.01"]
[Round "1.20"]
[White "Strebel, Michael"]
[Black "Siemes, Robert"]
[Result "1-0"]
[Annotator "RC"]
[ECO "A03"]
[WhiteElo "1955"]
[BlackElo "1903"]
[PlyCount "33"]
[EventDate "2024.07.31"]
[EventCountry "GER"]
[SourceTitle "playchess.com"]
[Source "ChessBase"]
[SourceQuality "1"]
[TimeControl "40/5400+30:900+30"]

1. f4 {[%emt 0:00:04]} Nf6 {[%emt 0:01:19]} 2. Nf3 {[%emt 0:00:06]} c5 {[%emt 0:00:47]} 3. e3 {[%emt 0:00:08]} d5 {[%emt 0:04:50]} 4. b3 {[%emt 0:00:15]} e6 {[%emt 0:02:53]} 5. Bb2 {[%emt 0:00:12]} Be7 {[%emt 0:00:27]} 6. Be2 {[%emt 0:04:39]} Nc6 {[%emt 0:06:31]} 7. Ne5 {[%emt 0:03:43]} Qc7 {[%emt 0:07:31]} 8. O-O {[%emt 0:06:30]} O-O {[%emt 0:12:36]} 9. Nxc6 {[%emt 0:00:12]} Qxc6 {[%emt 0:01:38]} 10. c4 {[%emt 0:03:21]} b6 {[%emt 0:08:03]} 11. Bf3 {[%emt 0:03:57]} Bb7 {[%emt 0:01:45]} 12. d3 {[%emt 0:00:28]} Rad8 {[%emt 0:01:09]} 13. Qe2 {[%emt 0:00:30]} Qc8 {[%emt 0:00:30]} 14. Nd2 {[%emt 0:00:30]} Ne8 {[%emt 0:00:30]} 15. e4 {[%emt 0:00:30]} Nd6 {[%emt 0:00:30]} 16. exd5 {[%emt 0:00:30]} exd5 {[%emt 0:25:18]} 17. Qxe7 {[%emt 0:14:06]} 1-0

[Event "DSAM Bad Wildungen 2024"]
[Site "Bad Wildungen"]
[Date "2024.08.01"]
[Round "1.21"]
[White "Schelkmann, Carl"]
[Black "Ley, Sabrina"]
[Result "1-0"]
[Annotator "RC"]
[ECO "B01"]
[WhiteElo "1884"]
[BlackElo "1953"]
[PlyCount "91"]
[EventDate "2024.07.31"]
[EventCountry "GER"]
[SourceTitle "playchess.com"]
[Source "ChessBase"]
[SourceQuality "1"]
[TimeControl "40/5400+30:900+30"]

1. e4 {[%emt 0:00:03]} d5 {[%emt 0:00:04]} 2. exd5 {[%emt 0:00:04]} Qxd5 {[%emt 0:00:04]} 3. Nc3 {[%emt 0:00:05]} Qd6 {[%emt 0:00:04]} 4. Bc4 {[%emt 0:02:12]} Nf6 {[%emt 0:03:00]} 5. d3 {[%emt 0:01:50]} a6 {[%emt 0:01:11]} 6. Qf3 {[%emt 0:04:33]} Nc6 {[%emt 0:14:50]} 7. Ne4 {[%emt 0:02:15]} Qe5 {[%emt 0:16:23]} 8. Ne2 {[%emt 0:09:22]} h5 {[%emt 0:10:15]} 9. h3 {[%emt 0:12:02]} Bg4 {[%emt 0:14:00]} 10. Qe3 {[%emt 0:10:01]} Bxe2 {[%emt 0:15:53]} 11. f4 {[%emt 0:07:42]} Qd4 {[%emt 0:07:31]} 12. Qxe2 {[%emt 0:06:27]} Nxe4 {[%emt 0:03:13]} 13. Qxe4 {[%emt 0:01:41]} Qxe4+ {[%emt 0:03:03]} 14. dxe4 {[%emt 0:00:06]} e5 {[%emt 0:00:30]} 15. f5 {[%emt 0:01:50]} Bc5 {[%emt 0:02:11]} 16. c3 {[%emt 0:01:07]} Na5 {[%emt 0:03:38]} 17. Bd3 {[%emt 0:02:04]} Ba7 {[%emt 0:00:25]} 18. Ke2 {[%emt 0:00:59]} O-O-O {[%emt 0:01:51]} 19. Rd1 {[%emt 0:01:24]} Rd6 {[%emt 0:00:17]} 20. Bg5 {[%emt 0:01:04]} f6 {[%emt 0:00:42]} 21. Bh4 {[%emt 0:01:36]} Rc6 {[%emt 0:01:06]} 22. Rd2 {[%emt 0:04:28]} Rd8 {[%emt 0:00:18]} 23. Rad1 {[%emt 0:00:56]} Nc4 {[%emt 0:00:21]} 24. Bxc4 {[%emt 0:00:26]} Rxd2+ {[%emt 0:00:06]} 25. Rxd2 {[%emt 0:00:10]} Rxc4 {[%emt 0:00:06]} 26. Kf3 {[%emt 0:00:43]} b5 {[%emt 0:01:09]} 27. a3 {[%emt 0:00:51]} Bb6 {[%emt 0:00:18]} 28. Be1 {[%emt 0:00:52]} Ba7 {[%emt 0:01:01]} 29. Rd5 {[%emt 0:02:30]} Bb6 {[%emt 0:00:46]} 30. b3 {[%emt 0:00:13]} Rc6 {[%emt 0:00:29]} 31. Kg3 {[%emt 0:00:44]} Ba5 {[%emt 0:00:32]} 32. Rd3 {[%emt 0:00:28]} Rd6 {[%emt 0:00:41]} 33. Rxd6 {[%emt 0:00:21]} cxd6 {[%emt 0:00:04]} 34. Kh4 {[%emt 0:00:14]} Kd7 {[%emt 0:00:27]} 35. Kxh5 {[%emt 0:00:11]} Ke7 {[%emt 0:00:08]} 36. Kg6 {[%emt 0:00:12]} Kf8 {[%emt 0:00:04]} 37. h4 {[%emt 0:00:44]} Bb6 {[%emt 0:01:11]} 38. Bd2 {[%emt 0:00:11]} Bd8 {[%emt 0:00:54]} 39. g4 {[%emt 0:00:28]} Be7 {[%emt 0:00:41]} 40. c4 {[%emt 0:01:28]} bxc4 {[%emt 0:00:31]} 41. bxc4 {[%emt 0:15:07]} d5 {[%emt 0:05:33]} 42. cxd5 {[%emt 0:00:00]} Bxa3 {[%emt 0:01:15]} 43. h5 {[%emt 0:00:00]} Be7 {[%emt 0:02:21]} 44. Ba5 {[%emt 0:00:00]} Bd6 {[%emt 0:05:31]} 45. h6 {[%emt 0:00:00]} gxh6 {[%emt 0:00:09]} 46. Kxf6 {[%emt 0:00:00]} 1-0

[Event "DSAM Bad Wildungen 2024"]
[Site "Bad Wildungen"]
[Date "2024.08.01"]
[Round "1.22"]
[White "Reinecke, Katharina"]
[Black "Rangosch, Lukas"]
[Result "1/2-1/2"]
[Annotator "RC"]
[ECO "D02"]
[WhiteElo "1949"]
[BlackElo "1953"]
[PlyCount "155"]
[EventDate "2024.07.31"]
[EventCountry "GER"]
[SourceTitle "playchess.com"]
[Source "ChessBase"]
[SourceQuality "1"]
[TimeControl "40/5400+30:900+30"]

1. d4 {[%emt 0:00:03]} c5 {[%emt 0:00:13]} 2. c3 {[%emt 0:01:57]} Nf6 {[%emt 0:00:35]} 3. Nf3 {[%emt 0:00:34]} e6 {[%emt 0:00:17]} 4. g3 {[%emt 0:00:59]} d5 {[%emt 0:02:16]} 5. Bg2 {[%emt 0:00:36]} Nc6 {[%emt 0:00:57]} 6. O-O {[%emt 0:00:41]} Be7 {[%emt 0:01:16]} 7. dxc5 {[%emt 0:02:10]} Bxc5 {[%emt 0:00:42]} 8. Nbd2 {[%emt 0:01:54]} O-O {[%emt 0:04:51]} 9. b4 {[%emt 0:10:18]} Bd6 {[%emt 0:08:04]} 10. a4 {[%emt 0:02:27]} e5 {[%emt 0:12:17]} 11. Nb3 {[%emt 0:04:19]} h6 {[%emt 0:03:27]} 12. Nfd2 {[%emt 0:06:24]} Be6 {[%emt 0:06:33]} 13. Ba3 {[%emt 0:03:56]} Qe7 {[%emt 0:06:16]} 14. Qc1 {[%emt 0:01:27]} Rac8 {[%emt 0:01:12]} 15. Qb2 {[%emt 0:00:23]} b6 {[%emt 0:03:44]} 16. e4 {[%emt 0:08:16]} a5 {[%emt 0:10:18]} 17. b5 {[%emt 0:04:58]} Bxa3 {[%emt 0:00:33]} 18. Rxa3 {[%emt 0:01:03]} Nb8 {[%emt 0:00:16]} 19. Raa1 {[%emt 0:12:25]} Nbd7 {[%emt 0:02:28]} 20. Rac1 {[%emt 0:04:43]} Nc5 {[%emt 0:05:38]} 21. Nxc5 {[%emt 0:00:14]} Rxc5 {[%emt 0:00:20]} 22. f4 {[%emt 0:07:13]} exf4 {[%emt 0:04:55]} 23. gxf4 {[%emt 0:02:49]} dxe4 {[%emt 0:01:29]} 24. Nxe4 {[%emt 0:01:22]} Nxe4 {[%emt 0:01:05]} 25. Bxe4 {[%emt 0:00:34]} Bd5 {[%emt 0:02:01]} 26. Bxd5 {[%emt 0:03:40]} Rxd5 {[%emt 0:00:43]} 27. c4 {[%emt 0:18:35]} Qc5+ {[%emt 0:01:44]} 28. Qf2 {[%emt 0:00:00]} Rf5 {[%emt 0:01:48]} 29. Qxc5 {[%emt 0:00:00]} Rxc5 {[%emt 0:00:55]} 30. Rfd1 {[%emt 0:00:00]} Re8 {[%emt 0:06:40]} 31. Rd6 {[%emt 0:00:00]} Re4 {[%emt 0:00:34]} 32. Rxb6 {[%emt 0:00:00]} Rexc4 {[%emt 0:00:11]} 33. Rxc4 {[%emt 0:00:00]} Rxc4 {[%emt 0:00:06]} 34. Ra6 {[%emt 0:00:02]} Rxa4 {[%emt 0:00:16]} 35. Kg2 {[%emt 0:01:35]} Ra3 {[%emt 0:02:51]} 36. b6 {[%emt 0:01:30]} Rb3 {[%emt 0:00:26]} 37. Ra8+ {[%emt 0:01:00]} Kh7 {[%emt 0:00:12]} 38. Rxa5 {[%emt 0:00:25]} Rxb6 {[%emt 0:00:11]} 39. Ra3 {[%emt 0:00:37]} f5 {[%emt 0:02:03]} 40. Ra5 {[%emt 0:00:43]} Kg6 {[%emt 0:00:15]} 41. Ra3 {[%emt 0:01:13]} Kf6 {[%emt 0:02:04]} 42. Ra8 {[%emt 0:03:07]} g5 {[%emt 0:02:08]} 43. fxg5+ {[%emt 0:04:38]} hxg5 {[%emt 0:00:09]} 44. Ra2 {[%emt 0:01:25]} Rb4 {[%emt 0:01:17]} 45. Re2 {[%emt 0:00:42]} Kg6 {[%emt 0:00:49]} 46. Ra2 {[%emt 0:00:37]} Kh5 {[%emt 0:00:57]} 47. Rf2 {[%emt 0:01:16]} f4 {[%emt 0:01:39]} 48. Ra2 {[%emt 0:00:30]} Rb3 {[%emt 0:00:24]} 49. Rf2 {[%emt 0:02:59]} Kg4 {[%emt 0:00:57]} 50. Ra2 {[%emt 0:00:35]} Kh4 {[%emt 0:04:23]} 51. Rf2 {[%emt 0:02:09]} Re3 {[%emt 0:01:05]} 52. Ra2 {[%emt 0:01:12]} g4 {[%emt 0:01:46]} 53. Ra8 {[%emt 0:00:30]} Re2+ {[%emt 0:00:26]} 54. Kg1 {[%emt 0:00:14]} Rd2 {[%emt 0:03:12]} 55. Rh8+ {[%emt 0:01:15]} Kg5 {[%emt 0:00:10]} 56. Rg8+ {[%emt 0:00:25]} Kf5 {[%emt 0:00:09]} 57. Re8 {[%emt 0:00:23]} Rd5 {[%emt 0:02:42]} 58. Re2 {[%emt 0:00:26]} Rd3 {[%emt 0:00:37]} 59. Ra2 {[%emt 0:00:24]} Ke4 {[%emt 0:00:32]} 60. Kf2 {[%emt 0:00:31]} Rf3+ {[%emt 0:00:23]} 61. Kg2 {[%emt 0:00:12]} Rc3 {[%emt 0:01:47]} 62. Kf2 {[%emt 0:00:16]} Kd3 {[%emt 0:00:27]} 63. Ra1 {[%emt 0:01:19]} Rc2+ {[%emt 0:00:18]} 64. Kg1 {[%emt 0:00:07]} f3 {[%emt 0:02:32]} 65. Rd1+ {[%emt 0:00:46]} Ke2 {[%emt 0:01:51]} 66. Rf1 {[%emt 0:00:18]} Ke3 {[%emt 0:01:21]} 67. Ra1 {[%emt 0:00:53]} Rd2 {[%emt 0:01:10]} 68. Re1+ {[%emt 0:00:32]} Re2 {[%emt 0:00:32]} 69. Ra1 {[%emt 0:00:06]} Rg2+ {[%emt 0:00:31]} 70. Kh1 {[%emt 0:00:10]} Rd2 {[%emt 0:00:13]} 71. Kg1 {[%emt 0:00:17]} Ke2 {[%emt 0:00:08]} 72. Rf1 {[%emt 0:00:25]} Rd1 {[%emt 0:00:39]} 73. Rxd1 {[%emt 0:00:13]} Kxd1 {[%emt 0:00:05]} 74. Kf2 {[%emt 0:00:06]} Kd2 {[%emt 0:00:11]} 75. h3 {[%emt 0:00:45]} gxh3 {[%emt 0:00:25]} 76. Kxf3 {[%emt 0:00:06]} h2 {[%emt 0:00:08]} 77. Kg2 {[%emt 0:00:03]} h1=Q+ {[%emt 0:00:09]} 78. Kxh1 {[%emt 0:03:33]} 1/2-1/2

[Event "DSAM Bad Wildungen 2024"]
[Site "Bad Wildungen"]
[Date "2024.08.01"]
[Round "1.23"]
[White "Dorendorf, Mika"]
[Black "Bursian, Tim"]
[Result "1-0"]
[Annotator "RC"]
[ECO "D10"]
[WhiteElo "1959"]
[BlackElo "1798"]
[PlyCount "47"]
[EventDate "2024.07.31"]
[EventCountry "GER"]
[SourceTitle "playchess.com"]
[Source "ChessBase"]
[SourceQuality "1"]
[TimeControl "40/5400+30:900+30"]

1. d4 {[%emt 0:00:02]} d5 {[%emt 0:00:15]} 2. c4 {[%emt 0:00:06]} c6 {[%emt 0:00:22]} 3. cxd5 {[%emt 0:00:13]} cxd5 {[%emt 0:00:16]} 4. Nc3 {[%emt 0:00:07]} Nf6 {[%emt 0:01:33]} 5. Bf4 {[%emt 0:00:08]} a6 {[%emt 0:04:13]} 6. e3 {[%emt 0:00:11]} e6 {[%emt 0:01:04]} 7. Bd3 {[%emt 0:00:08]} Be7 {[%emt 0:12:03]} 8. Nf3 {[%emt 0:00:30]} O-O {[%emt 0:00:18]} 9. O-O {[%emt 0:04:37]} Nbd7 {[%emt 0:02:27]} 10. h3 {[%emt 0:03:05]} Re8 {[%emt 0:19:57]} 11. Rc1 {[%emt 0:00:42]} Nf8 {[%emt 0:00:14]} 12. Nb5 {[%emt 0:04:23]} axb5 {[%emt 0:05:53]} 13. Bc7 {[%emt 0:00:09]} Qxc7 {[%emt 0:06:28]} 14. Rxc7 {[%emt 0:00:07]} Bd6 {[%emt 0:00:05]} 15. Rc1 {[%emt 0:00:30]} Rxa2 {[%emt 0:00:19]} 16. Bxb5 {[%emt 0:00:15]} Bd7 {[%emt 0:00:16]} 17. Bxd7 {[%emt 0:00:09]} N8xd7 {[%emt 0:00:06]} 18. Qb3 {[%emt 0:00:50]} Rea8 {[%emt 0:02:58]} 19. Qxb7 {[%emt 0:01:03]} h6 {[%emt 0:01:47]} 20. Rc8+ {[%emt 0:00:30]} Rxc8 {[%emt 0:00:10]} 21. Qxc8+ {[%emt 0:00:05]} Kh7 {[%emt 0:00:12]} 22. Qc6 {[%emt 0:01:09]} Bb4 {[%emt 0:02:19]} 23. Qc2+ {[%emt 0:00:31]} Ne4 {[%emt 0:00:45]} 24. Qb3 {[%emt 0:00:18]} 1-0

[Event "DSAM Bad Wildungen 2024"]
[Site "Bad Wildungen"]
[Date "2024.08.01"]
[Round "1.24"]
[White "Kubiak, Manfred"]
[Black "Roenker, Sebastian"]
[Result "0-1"]
[Annotator "RC"]
[ECO "A59"]
[WhiteElo "1902"]
[BlackElo "1851"]
[PlyCount "74"]
[EventDate "2024.07.31"]
[EventCountry "GER"]
[SourceTitle "playchess.com"]
[Source "ChessBase"]
[SourceQuality "1"]
[TimeControl "40/5400+30:900+30"]

1. d4 {[%emt 0:00:08]} Nf6 {[%emt 0:00:02]} 2. Nf3 {[%emt 0:00:14]} g6 {[%emt 0:00:08]} 3. c4 {[%emt 0:00:51]} c5 {[%emt 0:00:31]} 4. d5 {[%emt 0:00:45]} b5 {[%emt 0:00:34]} 5. cxb5 {[%emt 0:01:21]} a6 {[%emt 0:01:31]} 6. bxa6 {[%emt 0:01:03]} Bxa6 {[%emt 0:00:04]} 7. Nc3 {[%emt 0:01:32]} d6 {[%emt 0:02:20]} 8. e4 {[%emt 0:01:33]} Bxf1 {[%emt 0:00:19]} 9. Kxf1 {[%emt 0:00:16]} Nbd7 {[%emt 0:00:58]} 10. g3 {[%emt 0:01:21]} Bg7 {[%emt 0:00:24]} 11. Kg2 {[%emt 0:00:38]} O-O {[%emt 0:00:10]} 12. Qe2 {[%emt 0:07:12]} Qb6 {[%emt 0:02:36]} 13. Rb1 {[%emt 0:06:57]} Ng4 {[%emt 0:04:01]} 14. Bd2 {[%emt 0:04:42]} Rfb8 {[%emt 0:04:00]} 15. h3 {[%emt 0:02:51]} Nge5 {[%emt 0:02:13]} 16. Nxe5 {[%emt 0:00:44]} Nxe5 {[%emt 0:08:34]} 17. f4 {[%emt 0:01:36]} Nd7 {[%emt 0:00:30]} 18. a3 {[%emt 0:03:13]} Qb3 {[%emt 0:02:43]} 19. Qd1 {[%emt 0:03:15]} c4 {[%emt 0:02:10]} 20. Qxb3 {[%emt 0:02:16]} Rxb3 {[%emt 0:00:05]} 21. Rhc1 {[%emt 0:04:58]} Nc5 {[%emt 0:05:14]} 22. Ne2 {[%emt 0:10:34]} Nxe4 {[%emt 0:04:07]} 23. Bb4 {[%emt 0:01:07]} Rc8 {[%emt 0:12:10]} 24. Bc3 {[%emt 0:05:34]} Bxc3 {[%emt 0:08:12]} 25. Nxc3 {[%emt 0:01:32]} Nd2 {[%emt 0:01:34]} 26. Ra1 {[%emt 0:01:10]} Rxb2 {[%emt 0:01:54]} 27. Ra2 {[%emt 0:00:59]} Rcb8 {[%emt 0:01:59]} 28. Rc2 {[%emt 0:05:41]} Rxa2 {[%emt 0:05:47]} 29. Nxa2 {[%emt 0:03:06]} Ne4 {[%emt 0:03:48]} 30. Nb4 {[%emt 0:01:27]} c3 {[%emt 0:01:24]} 31. Kf3 {[%emt 0:02:29]} f5 {[%emt 0:05:40]} 32. g4 {[%emt 0:01:44]} Kf7 {[%emt 0:02:32]} 33. Ke3 {[%emt 0:01:20]} Ra8 {[%emt 0:01:36]} 34. Ra2 {[%emt 0:00:48]} Nc5 {[%emt 0:04:55]} 35. Kd4 {[%emt 0:02:26]} Ne4 {[%emt 0:05:36]} 36. Kc4 {[%emt 0:06:03]} Ra5 {[%emt 0:02:41]} 37. g5 {[%emt 0:02:51]} Rc5+ {[%emt 0:01:53]} 0-1

[Event "DSAM Bad Wildungen 2024"]
[Site "Bad Wildungen"]
[Date "2024.08.01"]
[Round "1.25"]
[White "Kraus, Linus"]
[Black "Sklorz, Tobias"]
[Result "0-1"]
[Annotator "NA RC"]
[ECO "D02"]
[WhiteElo "1893"]
[BlackElo "1848"]
[PlyCount "104"]
[EventDate "2024.07.31"]
[EventCountry "GER"]
[SourceTitle "playchess.com"]
[Source "ChessBase"]
[SourceQuality "1"]
[TimeControl "40/5400+30:900+30"]

1. Nf3 {[%emt 0:00:16]} Nf6 {[%emt 0:00:11]} 2. g3 {[%emt 0:00:52]} d5 {[%emt 0:00:32]} 3. Bg2 {[%emt 0:00:35]} c5 {[%emt 0:00:31]} 4. O-O {[%emt 0:00:35]} Nc6 {[%emt 0:00:11]} 5. d4 {[%emt 0:01:10]} cxd4 {[%emt 0:01:18]} 6. Nxd4 {[%emt 0:00:25]} e5 {[%emt 0:00:12]} 7. Nxc6 {[%emt 0:00:23]} bxc6 {[%emt 0:00:05]} 8. c4 {[%emt 0:00:56]} h6 {[%emt 0:07:04] D02: 1 d4 d5 2 Nf3 sidelines, including 2...Nf6 3 g3 and 2...Nf6 3 Bf4.} 9. Nc3 {[%emt 0:03:55]} Be6 {[%emt 0:00:31]} 10. Qa4 {[%emt 0:02:36]} Qd7 {[%emt 0:05:22]} 11. cxd5 {[%emt 0:06:21]} cxd5 {[%emt 0:04:14]} 12. Qxd7+ {[%emt 0:00:06]} Kxd7 {[%emt 0:00:04]} 13. Rd1 {[%emt 0:00:03]} Kd6 {[%emt 0:13:22]} 14. Nxd5 {[%emt 0:02:18]} Nxd5 {[%emt 0:04:02]} 15. Bxd5 {[%emt 0:00:06]} Bxd5 {[%emt 0:01:15]} 16. e4 {[%emt 0:00:05]} Rb8 {[%emt 0:03:09]} 17. Rxd5+ {[%emt 0:00:22]} Ke6 {[%emt 0:00:11]} 18. Ra5 {[%emt 0:02:07]} Rb7 {[%emt 0:14:47]} 19. b3 {[%emt 0:00:52]} Bd6 {[%emt 0:04:33]} 20. Be3 {[%emt 0:00:32]} Bb8 {[%emt 0:00:05]} 21. Ra6+ {[%emt 0:01:28]} Ke7 {[%emt 0:01:01]} 22. Bc5+ {[%emt 0:01:47]} Ke8 $18 {[%emt 0:00:05]} 23. Rd1 {[%emt 0:01:54]} f6 {[%emt 0:00:07]} 24. Kf1 {[%emt 0:06:44]} Kf7 {[%emt 0:00:10]} 25. Ke2 {[%emt 0:01:19]} Rc8 {[%emt 0:01:16]} 26. b4 {[%emt 0:00:55]} Rcc7 {[%emt 0:03:01]} 27. Rd8 {[%emt 0:03:49]} Rd7 {[%emt 0:00:20]} 28. Rxd7+ {[%emt 0:01:11]} Rxd7 {[%emt 0:00:05]} 29. Rc6 {[%emt 0:00:37]} Kg6 {[%emt 0:01:30]} 30. Rc8 {[%emt 0:00:46]} Bd6 {[%emt 0:00:14]} 31. a4 {[%emt 0:04:25]} Bxc5 {[%emt 0:01:52]} 32. Rxc5 {[%emt 0:03:06]} Rd4 {[%emt 0:00:30]} 33. Rb5 {[%emt 0:00:25]} Rxe4+ {[%emt 0:00:43]} 34. Kf3 {[%emt 0:00:19]} Rd4 {[%emt 0:00:34]} 35. a5 {[%emt 0:02:05]} Kf5 {[%emt 0:04:46]} 36. Rb7 {[%emt 0:01:41]} g5 {[%emt 0:00:08]} 37. a6 {[%emt 0:01:25]} g4+ {[%emt 0:09:26]} 38. Ke3 {[%emt 0:01:03]} Ke6 {[%emt 0:09:11]} 39. b5 {[%emt 0:00:33]} Rb4 {[%emt 0:00:10]} 40. Rb8 {[%emt 0:07:43]} Ra4 {[%emt 0:02:33]} 41. Kd3 {[%emt 0:18:43]} Kd5 {[%emt 0:17:21]} 42. Rb7 {[%emt 0:05:01]} Kc5 {[%emt 0:01:47]} 43. Rxa7 {[%emt 0:00:24]} Kxb5 {[%emt 0:00:25]} 44. Rh7 {[%emt 0:00:26]} Rxa6 {[%emt 0:04:23]} 45. Rxh6 {[%emt 0:00:20]} Rd6+ {[%emt 0:03:28]} 46. Ke4 {[%emt 0:01:55]} f5+ {[%emt 0:00:19]} 47. Kxe5 {[%emt 0:00:39]} Rxh6 {[%emt 0:00:10]} 48. Kxf5 {[%emt 0:00:03]} Rxh2 {[%emt 0:00:48]} 49. Kxg4 {[%emt 0:00:12]} Rxf2 {[%emt 0:00:13]} 50. Kh5 {[%emt 0:00:12]} Kc6 {[%emt 0:00:00]} 51. g4 {[%emt 0:00:00]} Kd7 {[%emt 0:00:00]} 52. Kh6 {[%emt 0:00:00]} Ke8 {[%emt 0:00:00]} 0-1